bitfinex/quotes_ETHUSD_20260130
["timestamp","ask_amount","ask_price","bid_price","bid_amount"]
[1769794403920,13.03532654,2723.5,2720.5,13.13997476]
[1769794404083,13.03532654,2723.5,2721.6,0.91857073]
[1769794404288,13.03532654,2723.2,2721.6,0.91857708]
[1769794404824,13.95319561,2723.7,2721.6,0.91857708]
[1769794405297,13.26889684,2723.6,2721.6,0.91857708]
[1769794405624,0.2335703,2723.4,2721.7,0.45928863]
[1769794405797,13.03532654,2723.1,2720.4,0.74818358]
[1769794405997,13.03532654,2722.7,2720.4,0.74818358]
[1769794406209,0.2335703,2722.4,2720.4,0.74818358]
[1769794406521,13.26889684,2722.4,2720.3,0.91899454]
[1769794406819,13.26889684,2722.2,2720.4,0.45951917]
[1769794407018,13.26889684,2722.2,2720.2,0.91904742]
[1769794407186,13.26889684,2722.2,2719.6,13.13997476]
[1769794407396,13.03532654,2722.0,2719.7,14.05919379]
[1769794408124,13.26889684,2721.9,2719.7,14.05679379]
[1769794408298,0.2335703,2721.7,2719.8,1.77337617]
[1769794408498,1.32688968,2721.8,2719.8,1.77337617]
[1769794408726,13.03532654,2721.9,2719.8,1.77337617]
[1769794408727,13.03532654,2721.9,2719.8,14.91335093]
[1769794409024,13.26889684,2722.0,2719.8,14.91335093]
[1769794409226,13.26889684,2722.0,2720.5,0.002]
[1769794409427,0.91847606,2721.9,2720.5,0.002]
[1769794410001,13.03532654,2721.6,2719.8,1.77337617]
[1769794410300,13.26889684,2721.0,2719.3,0.91934974]
[1769794410519,13.26889684,2721.0,2718.8,13.13997476]
[1769794410705,13.26889684,2721.0,2719.5,0.9192609]
[1769794411059,13.26889684,2721.0,2718.2,13.13997476]
[1769794411236,13.03532654,2719.9,2717.8,0.00209661]
[1769794411400,13.26889684,2719.6,2717.8,2.25526506]
[1769794411805,1.32688968,2719.8,2717.8,0.92193694]
[1769794412133,0.01838202,2720.9,2717.8,0.92193694]
[1769794412134,13.95425429,2720.6,2718.0,13.13997476]
[1769794412345,13.26889684,2720.5,2718.0,13.13997476]
[1769794412739,13.03532654,2720.5,2718.0,13.13997476]
[1769794412915,3.67536548,2720.9,2718.2,13.13997476]
[1769794413115,1.77319056,2720.8,2718.4,13.13997476]
[1769794413559,0.91888117,2720.7,2718.5,0.91962479]
[1769794413753,0.91888117,2720.7,2718.5,14.05959955]
[1769794414049,0.2335703,2720.6,2718.5,14.05959955]
[1769794414253,13.26889684,2720.4,2718.5,0.91962479]
[1769794414415,0.2335703,2720.6,2718.6,0.4598124]
[1769794414616,0.91888117,2720.7,2718.6,13.59978716]
[1769794415162,1.77319056,2720.8,2718.6,13.59978716]
[1769794415342,13.95414357,2720.9,2718.6,13.59978716]
[1769794415850,13.26889684,2720.6,2718.7,0.91955714]
[1769794416061,14.45410434,2720.5,2718.8,1.81975729]
[1769794416272,13.26889684,2720.4,2718.8,1.81975729]
[1769794416427,13.26889684,2720.4,2718.7,0.91955714]
[1769794416630,13.03532654,2720.4,2718.7,0.91955714]
[1769794417333,14.22800931,2720.3,2718.7,0.91955714]
[1769794417736,13.99443901,2720.3,2718.7,0.91955714]
[1769794418640,14.91308382,2721.4,2718.7,14.6630122]
[1769794418950,0.2335703,2720.9,2718.8,1.88010532]
[1769794419135,13.99443901,2720.8,2718.8,1.88010532]
[1769794419338,13.99443901,2720.4,2718.8,1.88010532]
[1769794419531,13.99443901,2720.4,2718.7,0.91955714]
[1769794419853,0.2335703,2721.0,2718.7,14.6630122]
[1769794420047,14.9131851,2721.1,2718.7,14.6630122]
[1769794420445,14.9131851,2721.1,2718.9,0.002]
[1769794420779,1.32688968,2721.5,2719.1,13.74345506]
[1769794420942,2.24550258,2721.5,2719.1,13.74345506]
[1769794421974,2.24550125,2721.5,2719.3,13.74345506]
[1769794422689,13.99443901,2721.3,2719.3,13.74345506]
[1769794422863,13.99443901,2721.2,2719.3,13.74345506]
[1769794423182,15.39388291,2721.1,2719.4,1.46628431]
[1769794423383,13.99443901,2721.0,2719.2,0.91938805]
[1769794423998,13.99443901,2721.0,2719.1,3.67755222]
[1769794423999,0.91881362,2720.9,2719.1,3.67755222]
[1769794424712,14.91323956,2721.0,2719.1,3.67755222]
[1769794424993,14.91322876,2721.0,2719.1,3.67755222]
[1769794425160,14.22800931,2720.9,2719.0,3.67755222]
[1769794425488,13.99443901,2720.7,2719.1,0.60655091]
[1769794426129,13.99443901,2720.7,2719.2,0.91938805]
[1769794426392,0.91886656,2720.8,2719.2,0.91938805]
[1769794426893,14.91303943,2721.6,2719.2,14.66284311]
[1769794427190,13.99443901,2722.1,2719.8,13.74345506]
[1769794427400,1.3994439,2722.0,2720.0,13.74345506]
[1769794428088,14.91291507,2721.9,2720.1,0.91908385]
[1769794428508,13.99443901,2721.7,2720.1,0.91908385]
[1769794429976,1.3994439,2722.0,2720.1,14.66253891]
[1769794430172,13.99443901,2722.2,2720.3,14.66247134]
[1769794430404,14.91267892,2722.6,2720.3,14.66247134]
[1769794430785,13.99443901,2722.6,2720.3,14.66247134]
[1769794432106,14.91268495,2722.6,2720.5,13.74345506]
[1769794432329,13.99443901,2722.6,2720.5,13.74345506]
[1769794432530,1.76671746,2722.6,2720.7,13.74345506]
[1769794432699,0.91822277,2722.7,2720.7,13.74345506]
[1769794433201,0.001,2721.8,2720.7,13.74345506]
[1769794433395,0.001,2721.8,2720.6,1.37434551]
[1769794433396,13.99543901,2721.8,2720.6,1.37434551]
[1769794433663,13.99443901,2721.4,2720.1,25.0]
[1769794433821,15.65081024,2721.3,2720.1,25.0]
[1769794434141,14.22800931,2721.1,2720.1,25.0]
[1769794434305,14.22800931,2721.1,2719.4,0.91929584]
[1769794434495,14.22800931,2721.1,2719.6,0.91923526]
[1769794434700,14.22800931,2721.1,2719.7,0.91921875]
[1769794435007,0.2335703,2720.7,2719.6,0.91923735]
[1769794435220,1.51467216,2721.0,2719.9,0.91914974]
[1769794435412,0.2335703,2720.9,2719.8,0.91916156]
[1769794435614,0.2335703,2721.1,2719.1,3.67758151]
[1769794435826,0.2335703,2721.1,2718.9,13.74545506]
[1769794435827,14.22800931,2721.1,2719.3,0.91935376]
[1769794436124,14.22800931,2720.9,2718.9,0.002]
[1769794436514,13.99443901,2720.7,2718.9,0.002]
[1769794436716,0.2335703,2720.4,2718.9,0.002]
[1769794437229,1.4096839,2720.6,2718.9,0.002]
[1769794437436,0.2335703,2720.9,2718.9,13.74545506]
[1769794438030,14.22800931,2720.9,2718.9,13.74545506]
[1769794438228,14.22800931,2720.7,2719.0,0.91945568]
[1769794438829,14.22800931,2720.7,2718.9,0.92146505]
[1769794439131,14.22800931,2720.5,2718.9,0.002]
[1769794439431,14.22800931,2720.2,2718.9,0.002]
[1769794439727,14.22800931,2720.0,2718.6,0.0012]
[1769794439901,14.22800931,2720.0,2718.7,0.91955041]
[1769794440097,0.2335703,2719.8,2718.6,0.0012]
[1769794440302,14.22800931,2719.8,2718.6,0.0012]
[1769794440503,0.2335703,2719.6,2718.6,0.0012]
[1769794441001,1.51471607,2719.7,2718.6,0.0012]
[1769794441194,0.2335703,2719.9,2718.6,0.0012]
[1769794441846,0.9191358,2720.0,2718.6,0.0012]
[1769794442043,1.42280093,2720.4,2718.6,13.74465506]
[1769794442203,13.99443901,2720.7,2718.7,0.91955714]
[1769794442406,13.99443901,2720.7,2718.7,14.6630122]
[1769794442715,1.3994439,2720.6,2718.8,15.57769914]
[1769794442939,0.91871233,2721.2,2718.8,15.57769914]
[1769794443153,14.91315134,2721.2,2718.8,1.83424408]
[1769794443440,13.99443901,2721.1,2718.7,14.6630122]
[1769794443740,0.91871233,2721.2,2718.7,14.6630122]
[1769794443741,0.1024,2720.8,2718.7,14.6630122]
[1769794443897,13.99443901,2721.0,2718.7,14.6630122]
[1769794444598,0.91953643,2721.8,2718.9,13.74345506]
[1769794444801,0.91953643,2721.8,2719.5,13.74345506]
[1769794445136,0.91951833,2721.8,2719.7,13.74345506]
[1769794445335,0.91951833,2721.8,2719.6,1.37434551]
[1769794445336,14.91395734,2721.8,2719.6,1.37434551]
[1769794445500,14.91395734,2721.8,2719.2,13.74345506]
[1769794446419,0.2335703,2721.5,2719.3,0.91935424]
[1769794447358,13.46280428,2721.5,2719.3,0.91935424]
[1769794448437,0.91864481,2721.4,2719.3,13.92721829]
[1769794448848,13.46280428,2721.3,2719.3,0.91935424]
[1769794449016,0.2335703,2721.1,2719.4,0.45967712]
[1769794450240,1.43814491,2721.2,2719.4,0.45967712]
[1769794450445,1.43814491,2721.2,2719.4,13.46754117]
[1769794450620,0.91874609,2721.1,2719.5,0.91928663]
[1769794451017,14.14798007,2721.1,2719.5,0.91928663]
[1769794452543,0.91874609,2721.1,2719.5,0.91928663]
[1769794452749,0.91861106,2721.5,2719.5,13.92715068]
[1769794452916,1.78222535,2721.4,2719.7,13.00786405]
[1769794453533,0.9185919,2721.6,2719.7,13.00786405]
[1769794454208,14.14782588,2721.6,2719.7,13.00786405]
[1769794454414,0.2335703,2721.5,2719.7,13.00786405]
[1769794454613,0.2335703,2721.1,2719.7,0.91921903]
[1769794454942,1.34628043,2721.0,2719.7,0.91921903]
[1769794455820,0.2335703,2720.9,2719.5,0.91926539]
[1769794456015,13.46280428,2720.9,2719.3,3.67739327]
[1769794456215,13.46280428,2720.9,2719.4,0.91931904]
[1769794456554,13.46280428,2720.4,2718.8,0.002]
[1769794456843,1.4381753,2720.3,2718.8,0.002]
[1769794457018,1.4381753,2720.3,2718.8,13.00986405]
[1769794457216,0.91894872,2720.5,2718.8,13.00986405]
[1769794458647,3.67527839,2720.9,2718.9,0.91948949]
[1769794458957,3.67527839,2720.9,2719.0,13.00786405]
[1769794459118,16.90451237,2720.9,2719.0,13.00786405]
[1769794460442,0.2335703,2720.8,2719.0,13.00786405]
[1769794460652,1.71380827,2720.7,2719.1,1.39273535]
[1769794460853,0.91891494,2720.6,2719.2,0.91938805]
[1769794461154,1.71380827,2720.7,2719.2,13.9272521]
[1769794461325,0.91890514,2720.7,2719.2,13.9272521]
[1769794461852,0.91861106,2721.5,2719.2,13.9272521]
[1769794462020,0.001,2721.6,2719.8,13.00786405]
[1769794462447,0.91958103,2721.6,2719.8,13.00786405]
[1769794462747,0.91958274,2721.6,2719.8,13.00786405]
[1769794462949,0.001,2721.6,2719.9,2.21993784]
[1769794463250,13.46280428,2721.5,2719.9,1.30078641]
[1769794463448,13.46280428,2721.5,2719.8,0.91918337]
[1769794463853,6.61579605,2721.5,2719.1,1.39273535]
[1769794464059,0.2335703,2721.0,2719.7,0.91921683]
[1769794464252,0.2335703,2721.0,2719.8,0.91917876]
[1769794464465,13.22923398,2721.1,2719.8,0.91917876]
[1769794464640,1.3229234,2721.0,2719.8,1.3787828]
[1769794464972,0.91871233,2721.2,2719.8,1.3787828]
[1769794467578,0.91861106,2721.5,2719.8,14.38664685]
[1769794469354,0.001,2721.0,2719.8,14.38664685]
[1769794471357,0.001,2721.6,2719.8,14.38664685]
[1769794471564,0.001,2721.6,2721.2,0.0008]
[1769794471767,0.001,2721.6,2720.7,0.91888117]
[1769794471961,0.001,2721.6,2720.8,1.76022699]
[1769794473073,0.001,2721.6,2720.4,0.91896311]
[1769794473259,0.001,2721.6,2720.6,0.91891159]
[1769794473466,0.001,2721.6,2720.5,0.91892727]
[1769794473972,0.001,2721.6,2719.9,13.92701548]
[1769794474167,0.2345703,2721.6,2719.9,13.92701548]
[1769794474467,0.2345703,2721.6,2720.0,1.80632253]
[1769794474468,13.46380428,2721.6,2720.0,1.80632253]
[1769794474672,13.46380428,2721.6,2719.9,0.91915143]
[1769794475775,13.22923398,2721.3,2719.9,0.91915143]
[1769794476461,0.91861106,2721.5,2719.9,13.92701548]
[1769794477979,3.67544424,2721.6,2719.9,13.92701548]
[1769794480871,16.59920033,2721.6,2719.9,13.92701548]
[1769794481086,1.75177776,2721.5,2720.0,1.80632253]
[1769794481578,1.75177776,2721.5,2720.1,0.002]
[1769794481783,0.001,2721.4,2720.1,0.002]
[1769794481982,0.91964481,2721.4,2720.1,0.92108385]
[1769794482280,0.63460004,2721.3,2720.2,0.64037418]
[1769794483556,13.55835613,2721.3,2720.1,0.92108385]
[1769794483953,0.63460004,2721.3,2720.1,0.92108385]
[1769794484153,0.91871233,2721.2,2720.1,0.002]
[1769794484752,1.55329356,2721.3,2720.1,0.002]
[1769794485688,0.001,2721.4,2720.1,13.51151547]
[1769794486067,0.001,2721.6,2720.4,13.50951547]
[1769794488358,0.001,2721.6,2720.6,13.50951547]
[1769794488558,16.59648902,2722.8,2720.8,13.50951547]
[1769794488864,13.84053517,2723.2,2720.8,13.50951547]
[1769794489581,12.92375609,2722.7,2720.8,13.50951547]
[1769794489783,12.92375609,2722.5,2720.8,13.50951547]
[1769794490081,12.92375609,2722.3,2720.9,1.35095155]
[1769794490264,1.29237561,2722.4,2720.7,0.91888117]
[1769794490265,13.84219841,2722.0,2720.7,0.91888117]
[1769794490584,13.84219841,2722.0,2720.3,0.91900792]
[1769794490585,13.15732639,2721.9,2720.3,0.91900792]
[1769794490775,13.15732639,2721.9,2720.4,0.91896344]
[1769794491081,13.15732639,2721.9,2720.5,0.91894831]
[1769794491289,13.15732639,2721.9,2720.5,0.91894821]
[1769794491455,0.2335703,2721.7,2720.4,0.91895753]
[1769794491783,0.2335703,2721.7,2720.5,0.9189459]
[1769794491985,14.33133296,2721.8,2720.6,0.91890795]
[1769794492184,1.40757687,2721.8,2720.6,0.91890795]
[1769794492489,3.67376928,2722.1,2720.5,13.50951547]
[1769794492490,0.91840858,2722.1,2720.5,13.50951547]
[1769794492975,13.84216467,2722.1,2720.3,0.91901628]
[1769794493171,13.15732639,2722.0,2720.3,0.91901628]
[1769794494268,0.91847606,2721.9,2720.2,3.67617067]
[1769794494465,0.91847606,2721.9,2720.3,13.50951547]
[1769794494670,3.03758013,2721.9,2720.4,15.22808408]
[1769794494881,0.91847606,2721.9,2720.4,15.22808408]
[1769794496892,0.001,2722.1,2720.5,0.91894872]
[1769794498373,0.001,2722.1,2720.6,13.50951547]
[1769794499399,0.001,2722.1,2720.8,13.50951547]
[1769794500395,0.001,2722.1,2720.7,0.91888117]
[1769794500562,1.38530972,2722.1,2720.8,0.45944059]
[1769794501602,0.91844232,2722.0,2720.9,0.91881362]
[1769794501974,0.91844232,2722.0,2720.8,0.91882659]
[1769794502165,13.84219841,2722.0,2720.8,0.91882659]
[1769794502371,13.15732639,2721.9,2720.4,1.71856861]
[1769794502572,15.04745413,2721.9,2720.4,0.91896649]
[1769794502772,13.15732639,2721.7,2719.9,0.92114127]
[1769794502979,13.15732639,2721.7,2720.1,0.92107512]
[1769794503282,13.15732639,2721.7,2720.1,0.002]
[1769794503484,13.15732639,2721.5,2720.1,0.002]
[1769794503696,13.15732639,2721.3,2720.1,0.002]
[1769794504077,13.15732639,2721.3,2719.9,0.002]
[1769794504280,13.15732639,2721.3,2718.9,3.67785716]
[1769794504281,13.15732639,2720.7,2718.7,13.50951547]
[1769794504481,12.92375609,2720.4,2718.6,0.92076815]
[1769794504802,0.2335703,2720.1,2718.7,0.91955081]
[1769794505101,13.15732639,2720.0,2718.6,0.0012]
[1769794505600,13.15732639,2720.0,2717.9,13.50951547]
[1769794505601,13.15732639,2719.8,2717.7,3.67951183]
[1769794505904,13.15732639,2719.6,2717.6,3.67968224]
[1769794506080,13.15732639,2719.6,2719.0,0.002]
[1769794506279,13.15732639,2719.3,2717.6,0.91992934]
[1769794506495,13.15732639,2719.3,2717.8,0.0001006]
[1769794507874,0.2335703,2719.1,2717.8,0.0001006]
[1769794508697,13.87640124,2719.1,2717.8,0.0001006]
[1769794509713,13.64283094,2718.2,2717.0,0.0188147]
[1769794510016,16.16044445,2718.1,2716.3,0.92034637]
[1769794510204,16.16044445,2718.1,2716.6,0.92024941]
[1769794510378,16.16044445,2718.1,2716.4,0.92031767]
[1769794510575,0.1024,2718.0,2715.9,13.28615738]
[1769794510779,0.2335703,2717.4,2715.9,2.24910086]
[1769794510974,0.2335703,2717.4,2716.0,0.9204706]
[1769794511177,0.2335703,2717.4,2715.4,16.96881618]
[1769794511178,13.87640124,2717.4,2715.4,13.28615738]
[1769794511381,13.87640124,2717.4,2715.6,0.92059591]
[1769794511582,13.87640124,2717.4,2716.0,0.92045787]
[1769794511978,0.91992934,2717.6,2715.6,13.28615738]
[1769794512179,0.91990679,2717.7,2715.7,14.98302581]
[1769794512405,13.87640124,2717.6,2715.7,14.98302581]
[1769794512805,0.2335703,2717.1,2715.5,0.92064076]
[1769794512997,13.87640124,2717.1,2715.5,0.92064076]
[1769794513323,0.2335703,2717.0,2715.5,0.92064076]
[1769794513908,13.64283094,2717.6,2715.2,13.28615738]
[1769794514118,0.2335703,2717.5,2715.2,13.28615738]
[1769794514417,1.38764012,2717.4,2715.4,13.28615738]
[1769794515021,0.91989549,2717.7,2715.4,13.28615738]
[1769794515911,0.2335703,2717.4,2715.5,14.20679814]
[1769794517289,0.9199632,2717.5,2715.5,14.20679814]
[1769794517697,0.26200135,2717.9,2715.5,14.20679814]
[1769794517887,1.18184471,2717.9,2715.9,13.28615738]
[1769794518088,1.18184471,2717.9,2716.1,13.28615738]
[1769794518293,13.64283094,2717.7,2716.0,1.42066964]
[1769794518609,0.1024,2717.8,2715.7,14.20670881]
[1769794518610,0.2335703,2717.4,2715.7,14.20670881]
[1769794518990,0.2335703,2717.3,2715.7,0.92257159]
[1769794519821,13.87640124,2717.2,2715.7,0.922572]
[1769794520046,0.2335703,2717.0,2715.7,0.002]
[1769794520721,0.92009863,2717.1,2715.7,0.002]
[1769794520921,1.82433241,2717.0,2715.7,0.002]
[1769794521121,0.92009863,2717.1,2715.7,0.002]
[1769794521615,0.92009863,2717.1,2715.8,13.28615738]
[1769794522122,3.68039453,2717.2,2715.9,0.92050517]
[1769794522999,3.68039453,2717.2,2715.9,14.20666255]
[1769794523199,3.68039453,2717.2,2715.8,0.92051377]
[1769794523403,0.46004593,2717.1,2715.9,0.46047841]
[1769794524029,0.92013249,2717.0,2715.7,0.002]
[1769794524218,0.2335703,2716.9,2715.7,0.002]
[1769794524732,13.74523094,2716.6,2714.8,0.92087242]
[1769794524925,0.1024,2716.6,2715.0,0.92079194]
[1769794525127,0.1024,2716.6,2715.1,1.42069493]
[1769794525330,13.74523094,2716.6,2714.7,0.92088514]
[1769794525503,13.74523094,2716.6,2714.5,16.97007618]
[1769794525705,13.74523094,2716.6,2715.0,0.92078806]
[1769794526029,0.1024,2716.2,2714.6,13.28615738]
[1769794526204,0.1024,2716.2,2714.5,0.92097992]
[1769794526205,0.2335703,2716.2,2714.7,14.70687111]
[1769794526403,0.92036962,2716.3,2714.7,14.70687111]
[1769794527335,0.46004593,2717.1,2714.7,14.70687111]
[1769794527636,0.92013249,2717.0,2714.7,14.70687111]
[1769794528024,0.2335703,2717.0,2714.9,13.28615738]
[1769794528218,0.39141003,2716.9,2715.0,14.70686093]
[1769794528523,0.2335703,2716.8,2715.0,14.70686093]
[1769794528830,0.39141003,2716.9,2715.0,14.70686093]
[1769794530130,0.92020023,2716.8,2715.2,13.28615738]
[1769794530837,0.92020023,2716.8,2715.1,0.92077639]
[1769794531017,1.86352421,2716.7,2715.1,14.20693377]
[1769794531336,1.86352421,2716.7,2715.0,14.20696519]
[1769794531655,0.39141003,2716.9,2715.0,14.20696519]
[1769794531939,13.87640124,2716.8,2715.0,14.20696519]
[1769794532135,0.9202341,2716.7,2715.0,14.20696519]
[1769794532636,13.87640124,2716.6,2714.9,0.002]
[1769794532936,0.2335703,2716.1,2714.9,0.002]
[1769794533342,13.87640124,2716.6,2714.9,0.002]
[1769794533640,0.2335703,2716.4,2714.9,0.002]
[1769794533823,13.87640124,2716.4,2714.9,0.002]
[1769794534211,14.56320056,2716.3,2714.9,0.002]
[1769794534404,0.92036962,2716.3,2714.9,0.002]
[1769794534610,0.92036962,2716.3,2714.9,13.28815738]
[1769794534811,0.46018481,2716.2,2714.9,14.61697312]
[1769794535329,0.2335703,2716.1,2714.9,0.002]
[1769794536341,0.92047128,2716.0,2714.9,0.002]
[1769794538216,3.68188512,2716.1,2714.9,0.002]
[1769794538539,3.68188512,2716.1,2714.6,0.002]
[1769794538540,16.41166961,2716.1,2714.6,0.002]
[1769794538740,3.68188512,2716.1,2714.6,13.61461848]
[1769794538945,0.2335703,2716.0,2714.6,0.002]
[1769794539917,3.68188512,2716.1,2714.7,0.92088721]
[1769794540246,0.92043739,2716.2,2714.7,13.61261848]
[1769794540446,0.92043739,2716.2,2714.6,0.92294599]
[1769794540635,0.92043739,2716.2,2714.6,13.61461848]
[1769794540838,0.4601963,2716.1,2714.6,15.43677303]
[1769794542425,0.4601963,2716.1,2714.8,13.61261848]
[1769794542745,0.92020023,2716.8,2714.8,13.61261848]
[1769794544037,12.72978449,2716.6,2714.8,13.61461848]
[1769794544238,0.001,2716.0,2714.8,13.61461848]
[1769794544644,0.001,2716.0,2714.8,0.002]
[1769794545021,0.001,2716.0,2714.8,0.92284854]
[1769794545423,0.001,2716.0,2714.9,14.07325929]
[1769794545728,3.68134295,2716.5,2714.9,14.07325929]
[1769794545729,0.92032772,2716.5,2715.0,13.61261848]
[1769794546635,0.2335703,2717.0,2715.2,13.61261848]
[1769794547780,12.96335479,2717.0,2714.9,0.46064081]
[1769794547920,19.36579767,2716.8,2715.0,0.92080268]
[1769794548119,3.68041223,2717.1,2715.0,14.53342116]
[1769794548351,0.92006477,2717.2,2715.0,14.53342116]
[1769794548851,3.68025909,2717.3,2715.0,14.53342116]
[1769794549884,0.9199632,2717.5,2715.0,14.53342116]
[1769794550024,0.45997021,2717.4,2715.2,13.61261848]
[1769794550745,0.92003091,2717.3,2715.4,13.61261848]
[1769794551952,0.2335703,2717.2,2715.4,13.61261848]
[1769794552255,0.92003091,2717.3,2715.4,13.61261848]
[1769794553140,0.92003091,2717.3,2715.6,13.61261848]
[1769794553345,1.79405575,2717.3,2715.8,13.61261848]
[1769794553518,0.91986165,2717.8,2715.8,13.61261848]
[1769794555334,0.91986165,2717.8,2716.0,13.61261848]
[1769794556643,0.001,2717.6,2716.0,13.61261848]
[1769794557228,0.001,2717.6,2716.2,13.61261848]
[1769794557439,6.48961419,2717.9,2716.4,13.61261848]
[1769794557650,7.40945092,2717.9,2716.4,13.61181848]
[1769794557853,7.40944722,2717.9,2716.4,13.61181848]
[1769794558754,12.11523221,2718.4,2716.5,13.61261848]
[1769794558755,8.43649845,2718.4,2716.5,13.61261848]
[1769794558931,8.43649845,2718.4,2716.7,13.61261848]
[1769794559134,9.35617841,2718.4,2716.7,13.61261848]
[1769794559344,9.35616306,2718.4,2716.9,13.61261848]
[1769794561061,9.3561599,2718.4,2716.8,14.53281871]
[1769794561226,1.30347944,2718.3,2716.9,1.82136197]
[1769794561422,0.91972628,2718.2,2716.9,1.82136197]
[1769794561620,13.64951077,2718.2,2716.5,0.92029437]
[1769794561824,13.64951077,2718.2,2716.4,0.92031104]
[1769794562245,13.64951077,2718.2,2716.5,0.92030182]
[1769794562449,13.64951077,2718.2,2716.6,0.92026339]
[1769794562626,13.64951077,2718.2,2716.5,0.92027843]
[1769794562829,13.64951077,2718.2,2716.6,1.38041044]
[1769794562830,1.86318954,2718.1,2716.6,1.38041044]
[1769794563043,1.86318954,2718.1,2716.6,0.46016139]
[1769794563262,2.2231795,2718.3,2717.0,0.92013249]
[1769794563566,9.35616447,2718.4,2717.0,13.61261848]
[1769794563752,9.35616447,2718.4,2716.8,3.68052999]
[1769794563930,22.08594896,2718.4,2716.7,0.92021519]
[1769794564258,2.57645593,2718.3,2716.8,0.46011634]
[1769794564447,12.96335479,2718.2,2716.8,0.46011634]
[1769794564761,12.96335479,2718.2,2716.6,0.92026635]
[1769794564926,12.96335479,2718.2,2716.7,0.9202322]
[1769794565126,12.72978449,2718.2,2716.7,0.9202322]
[1769794565335,0.91972628,2718.2,2716.7,13.61261848]
[1769794565861,0.91970108,2718.3,2716.7,13.61261848]
[1769794566066,0.91970108,2718.3,2716.9,13.61261848]
[1769794566276,13.64948557,2718.3,2716.8,1.72936181]
[1769794566569,13.64948557,2718.3,2716.5,16.67844504]
[1769794566772,0.91970108,2718.3,2716.6,12.99750861]
[1769794567466,0.91970108,2718.3,2716.7,13.91774271]
[1769794568030,8.43649845,2718.4,2716.7,13.91774271]
[1769794568935,9.35616614,2718.4,2716.7,13.91774271]
[1769794569177,10.38338271,2718.9,2716.9,12.99750861]
[1769794569341,10.38338271,2718.9,2717.1,12.99750861]
[1769794571371,10.38338271,2718.9,2717.3,12.99750861]
[1769794574272,10.38338271,2718.9,2717.4,0.91999705]
[1769794574479,10.38338271,2718.9,2717.5,12.99750861]
[1769794574782,10.38338271,2718.9,2717.6,14.38925918]
[1769794575772,12.97922839,2719.7,2717.8,12.99750861]
[1769794576371,12.97922839,2719.7,2718.0,12.99750861]
[1769794576882,0.001,2719.9,2718.1,2.15148518]
[1769794578062,31.32761401,2721.2,2718.4,0.1024]
[1769794578277,31.32761401,2721.2,2718.6,0.1024]
[1769794578599,14.0,2721.1,2718.6,0.1024]
[1769794579103,14.0,2721.1,2718.5,0.91962479]
[1769794579955,14.0,2720.7,2718.5,0.91962479]
[1769794580386,14.0,2720.5,2718.5,0.91962479]
[1769794580548,1.49189149,2720.4,2718.6,0.4995864]
[1769794580749,14.91887079,2720.8,2718.6,0.4995864]
[1769794580954,14.91885527,2720.8,2718.6,0.4995864]
[1769794581162,0.001,2720.5,2718.6,0.4995864]
[1769794581786,14.001,2720.5,2718.6,0.4995864]
[1769794582480,14.0,2720.3,2718.7,0.91955714]
[1769794582695,1.49189825,2720.2,2718.8,0.50973721]
[1769794582887,15.49189825,2720.2,2718.8,0.50973721]
[1769794583594,15.49189825,2720.2,2718.8,0.16673721]
[1769794584688,14.91908385,2720.1,2718.9,0.91948949]
[1769794584996,14.0,2719.9,2719.0,0.47641847]
[1769794585161,14.0,2719.9,2718.8,1.08624542]
[1769794587609,0.91903533,2720.3,2718.8,1.08624542]
[1769794587887,0.001,2720.5,2718.8,1.08624542]
[1769794588102,14.91996196,2720.5,2718.9,0.47644283]
[1769794589403,14.91996196,2720.5,2719.0,0.91945568]
[1769794590099,0.001,2720.5,2719.0,0.91945568]
[1769794590261,14.91994882,2720.5,2719.0,0.91945568]
[1769794590793,14.91996404,2720.5,2719.0,0.91945568]
[1769794590994,14.001,2720.5,2719.1,0.50737212]
[1769794591160,14.91995799,2720.5,2719.1,0.50737212]
[1769794591374,14.001,2720.5,2719.2,0.91938805]
[1769794591575,14.91994948,2720.5,2719.2,0.91938805]
[1769794593905,14.91511959,2720.5,2719.2,0.91938805]
[1769794594106,14.91511959,2720.5,2719.3,0.51043124]
[1769794595141,13.99617011,2720.5,2719.3,0.51043124]
[1769794595309,14.91512527,2720.5,2719.3,0.51043124]
[1769794595810,14.91512527,2720.5,2719.4,0.91932043]
[1769794596006,14.91512527,2720.5,2719.3,1.42977285]
[1769794596178,13.99808505,2720.3,2719.3,0.51043124]
[1769794596509,13.99808505,2720.3,2719.2,0.91936242]
[1769794596878,13.99808505,2720.3,2719.3,0.91935274]
[1769794597710,13.99808505,2720.3,2718.7,0.002]
[1769794598079,13.99808505,2720.7,2718.8,0.00382989]
[1769794598286,13.99808505,2720.7,2718.8,0.372239]
[1769794598790,13.99808505,2720.7,2718.8,0.36840911]
[1769794600010,13.99808505,2720.5,2718.9,0.91948949]
[1769794601382,13.99808505,2720.5,2718.8,0.36840911]
[1769794601589,0.91891494,2720.6,2718.8,0.91952217]
[1769794601590,13.99808505,2720.3,2718.8,0.91952217]
[1769794602126,13.99808505,2719.9,2718.7,0.002]
[1769794603923,14.91713511,2720.2,2718.7,0.002]
[1769794604233,13.99808505,2721.0,2718.8,0.00382989]
[1769794604719,13.99808505,2720.9,2718.8,0.00382989]
[1769794605414,18.17091975,2721.2,2718.8,0.00382989]
[1769794605922,18.17091975,2721.2,2719.0,0.00382989]
[1769794606727,18.16708986,2721.2,2719.2,0.1024]
[1769794606887,13.99808505,2721.9,2719.3,0.2335703]
[1769794607088,20.76776543,2722.1,2719.8,0.18604008]
[1769794607334,20.76776543,2722.1,2719.7,12.09068]
[1769794607335,20.76776543,2722.1,2720.5,0.18604008]
[1769794607538,20.58172535,2722.1,2720.5,0.18604008]
[1769794607731,13.80810996,2723.0,2720.7,0.19189004]
[1769794608245,13.90405498,2722.8,2720.6,0.1024]
[1769794608395,13.90405498,2722.6,2720.6,0.1024]
[1769794608736,13.90405498,2722.6,2720.5,0.91894872]
[1769794609632,13.90405498,2722.6,2720.6,0.1024]
[1769794610207,14.82230041,2722.6,2720.7,0.91888117]
[1769794612040,13.90405498,2722.6,2720.7,0.91888117]
[1769794612334,14.82229673,2722.6,2720.9,0.91881362]
[1769794617304,13.90405498,2722.6,2720.9,0.91881362]
[1769794617727,13.90405498,2722.6,2721.0,0.1024]
[1769794617944,13.90405498,2723.0,2721.0,0.1024]
[1769794618442,13.90405498,2723.0,2721.2,0.29429004]
[1769794618614,22.71364969,2723.1,2721.3,0.19189004]
[1769794619506,22.52095965,2723.1,2721.4,0.1024]
[1769794619843,19.46884259,2724.0,2721.5,0.2335703]
[1769794620165,19.46884259,2724.0,2721.6,0.1024]
[1769794620302,19.46884259,2724.0,2721.8,0.3359703]
[1769794620503,0.001,2724.2,2722.3,0.2335703]
[1769794620800,14.73350541,2724.8,2722.5,0.184]
[1769794621002,21.84091387,2724.9,2722.5,0.184]